Cogmind - Beta 13 @@@ ROGUE MODE // 2024.05.03 @ 19:33:14 Player: ash Result: Smashed by cave-in Performance ------------- Evolutions (0) 0 Regions Visited (2) 400 Robots Destroyed (11) 55 Value Destroyed (181) 181 Prototype IDs (0) 0 Alien Tech Used (0) 0 Bonus (0) 0 TOTAL SCORE: 636 Bonus ------- None Cogmind --------- Core Integrity 0/250 Matter 252/300 Energy 99/100 System Corruption 7% Temperature Cool (0) Movement Core (50) Location -10/Mines Parts ------- > --- POWER (1) -------- (None) > --- PROPULSION (2) --- (None) > --- UTILITY (2) ------ (None) > --- WEAPON (2) ------- (None) > --- INVENTORY (5) ---- Ion Engine Small Laser EMP Trap Peak State ------------ > --- POWER ------------ Light Ion Engine > --- PROPULSION ------- Aluminum Leg Aluminum Leg > --- UTILITY ---------- Heat Sink Large Storage Unit > --- WEAPON ----------- Assault Rifle Light Cannon > --- INVENTORY -------- Ion Engine Light Treads Light Treads Wheel Compact Wheel Visual Processing Unit Core Shielding EM Pulse Gun Small Laser [Rating: 8] Favorites ----------- Power Light Ion Engine Engine Light Ion Engine Propulsion Aluminum Leg Treads Light Treads Leg Aluminum Leg Wheel Wheel Utility Large Storage Unit Device Heat Sink Storage Large Storage Unit Weapon Assault Rifle Energy Gun EM Pulse Gun Ballistic Gun Assault Rifle Ballistic Cannon Light Cannon Build | -11 -10 -10 ------- Run | Yrd Mat Min Slots Evolved . | . . . Power . | . . . Propulsion . | . . . Utility . | . . . Weapon . | . . . Parts Attached 5 | . 3 2 Power . | . . . Engine . | . . . Core . | . . . Reactor . | . . . Propulsion 2 | . . 2 Treads 1 | . . 1 Leg . | . . . Wheel 1 | . . 1 Hover . | . . . Flight . | . . . Utility 2 | . 2 . Device 1 | . 1 . Storage 1 | . 1 . Processor . | . . . Hackware . | . . . Protection . | . . . Artifact . | . . . Weapon 1 | . 1 . Energy Gun . | . . . Energy Cannon . | . . . Ballistic Gun . | . . . Ballistic Cannon 1 | . 1 . Launcher . | . . . Special Weapon . | . . . Impact Weapon . | . . . Slashing Weapon . | . . . Piercing Weapon . | . . . Special Melee Weapon . | . . . Unidentified Prototypes . | . . . Parts Lost 8 | . 1 7 Power 1 | . . 1 Propulsion 3 | . . 3 Utility 1 | . . 1 Weapon 3 | . 1 2 Highest Loss Streak 4 | . 1 4 To Critical Strikes . | . . . Average Slot Usage (%) 78 | . 92 46 Engine 10 | . 14 2 Leg 23 | . 28 13 Wheel 2 | . . 10 Device 7 | . 6 10 Storage 10 | . 14 2 Energy Gun 4 | . 7 . Ballistic Gun 10 | . 14 2 Ballistic Cannon 5 | . 7 3 Naked Turns . | . . . Heaviest Build 29 | 12 29 29 Greatest Support 20 | 20 20 20 Greatest Overweight (x) 1 | . 1 1 Average Overweight (x) . | . . . Largest Inventory Capacity 15 | . 15 15 Average Capacity 12 | . 14 6 Most Carried 10 | . 10 10 Average Carried 7 | . 7 5 Final Capacity 15 | 8 15 5 Final Carried 10 | 6 10 3 Class Distribution -------------------- 100% | Mutant Dominant Class ---------------- Mutant | -10/Materials Mutant | -10/Mines Resources | -11 -10 -10 ----------- Run | Yrd Mat Min Matter Collected 340 | 193 121 26 Remotely . | . . . Salvage Created 284 | . 284 . Parts 26 | . 26 . Haulers Intercepted . | . . . Recyclers Shooed 2 | . 2 . Parts Field Recycled . | . . . Retrieved Matter . | . . . Parts Self-Destructed . | . . . Prevented . | . . . Kills | -11 -10 -10 ------- Run | Yrd Mat Min Combat Hostiles Destroyed 6 | . 6 . Guns 5 | . 5 . AOE 1 | . 1 . Classes Destroyed 5 | . 5 . Worker 2 | . 2 . Builder 1 | . 1 . Watcher 2 | . 2 . Swarmer 3 | . 3 . Grunt 3 | . 3 . Best Kill Streak 6 | . 6 . Combat Bots Only 3 | . 3 . Max Kills in Single Turn 3 | . 3 . Gunslinging . | . . . Exploded 1 | . 1 . Melee . | . . . Uniques/NPCs Destroyed . | . . . Combat | -11 -10 -10 -------- Run | Yrd Mat Min Hostile Shots Fired 48 | . 28 20 Missed 10 | . 5 5 Damage Taken 930 | . 255 675 Core 255 | . 59 196 Absorbed by Shields . | . . . Core Remaining (%) 100 | 100 . . Volleys Fired 35 | . 33 2 Largest 2 | . 2 2 Hottest 60 | . 60 55 Shots Fired 70 | . 66 4 Gun 51 | . 49 2 Cannon 19 | . 17 2 Launcher . | . . . Special . | . . . Kinetic 54 | . 50 4 Thermal . | . . . Explosive . | . . . Electromagnetic 16 | . 16 . Robot Hit Streak 9 | . 9 . Robot Miss Streak 5 | . 5 . Penetration Max . | . . . Secondary Targets . | . . . Shots Hit Robots 40 | . 40 . Core Hits 13 | . 13 . Critical Kills 1 | . 1 . Critical Parts Destroyed . | . . . Critical Strikes 1 | . 1 . Destroy 1 | . 1 . Melee Attacks . | . . . Impact . | . . . Slashing . | . . . Piercing . | . . . Sneak Attacks . | . . . Combat Hostiles . | . . . Follow-up Attacks . | . . . Damage Inflicted 691 | . 691 . Guns 411 | . 411 . Cannons 174 | . 174 . Explosions 106 | . 106 . Melee . | . . . Ramming . | . . . Kinetic 468 | . 468 . Thermal 106 | . 106 . Explosive . | . . . Electromagnetic 117 | . 117 . Impact . | . . . Slashing . | . . . Piercing . | . . . Highest Corruption 5 | . . 5 Average Corruption 5 | . . 5 Corruption Purged . | . . . Corruption Blocked . | . . . Effects 1 | . . 1 Data Loss (major) 1 | . . 1 Overload Shots . | . . . Overflow Damage . | . . . Projectiles . | . . . Explosions . | . . . Melee . | . . . Knockbacks 2 | . 2 . Impact . | . . . Kinetic 2 | . 2 . Secondary . | . . . Self-Inflicted Damage 34 | . 34 . Shots 1 | . 1 . Rammed . | . . . Targets Rammed 1 | . 1 . Kicked 1 | . 1 . Crushed . | . . . Highest Temperature 42 | . 42 . Average Temperature 18 | . 18 . Received Heat Transfer 72 | . 72 . Siege Activations . | . . . Robots Corrupted . | . . . Combat Hostiles . | . . . Parts Fried 1 | . 1 . Impact Corruptions . | . . . Robots Melted . | . . . Combat Hostiles . | . . . Parts Melted . | . . . Heat Transferred 50 | . 50 . Parts Sabotaged . | . . . Parts Stolen . | . . . Parts Stripped . | . . . Power Chain Reactions 1 | . 1 . Alert | -11 -10 -10 ------- Run | Yrd Mat Min Peak Influence 219 | . 219 30 Initial 17 | . . 17 Average 63 | . 83 11 Maximum Alert Level 1 | . 1 . Low Security (%) 93 | . 90 100 Level 1 6 | . 9 . Level 2 . | . . . Level 3 . | . . . Level 4 . | . . . Level 5 . | . . . High Security . | . . . Max Security . | . . . Squads Dispatched . | . . . Investigation . | . . . Extermination . | . . . Reinforcement . | . . . Assault . | . . . Garrison . | . . . Intercept . | . . . Searches Triggered . | . . . Construction Impeded . | . . . Haulers Reinforced . | . . . Active Scanning Responses . | . . . Cargo Convoy Interrupts . | . . . Stealth | -11 -10 -10 --------- Run | Yrd Mat Min Distress Signals 1 | . 1 . Communications Jammed . | . . . Distress Signals . | . . . Times Spotted 22 | . 16 6 Peak Tracking Total 6 | . 6 3 Tactical Retreats 2 | . 1 1 Traps | -11 -10 -10 ------- Run | Yrd Mat Min Traps Triggered . | . . . Indirectly . | . . . Trap Hack Attempts . | . . . Triggered . | . . . Disarmed . | . . . Reprogrammed . | . . . Reused 1 | . . 1 Traps Extracted . | . . . Installed 3 | . . 3 Triggered . | . . . Most Traps Carried 3 | . . 3 Machines | -11 -10 -10 ---------- Run | Yrd Mat Min Machines Disabled 1 | . 1 . Max in Single Turn 1 | . 1 . Machines Repaired . | . . . Machines Dismantled . | . . . Machines Sabotaged . | . . . Overloaded Fab Kills . | . . . Hacking | -11 -10 -10 --------- Run | Yrd Mat Min Machines Accessed 4 | . 4 . Terminals 4 | . 4 . Fabricators . | . . . Repair Stations . | . . . Recycling Units . | . . . Scanalyzers . | . . . Garrison Access . | . . . Total Hacks 11 | . 11 . Successful 6 | . 6 . Failed 5 | . 5 . Catastrophic 1 | . 1 . Database Lockouts . | . . . Manual 2 | . 2 . Terminals 11 | . 11 . Fabricators . | . . . Repair Stations . | . . . Recycling Units . | . . . Scanalyzers . | . . . Garrison Access . | . . . Terminal Hacks 5 | . 5 . Record 1 | . 1 . Branch Access Points 1 | . 1 . Alert Level 1 | . 1 . Locate Traps 1 | . 1 . Transport Status 1 | . 1 . Fabricator Hacks . | . . . Repair Station Hacks . | . . . Recycling Unit Hacks . | . . . Scanalyzer . | . . . Garrison Access Hacks . | . . . Unauthorized Hacks 1 | . 1 . Terminals 1 | . 1 . Botnet 1 | . 1 . Fabricators . | . . . Repair Stations . | . . . Recycling Units . | . . . Scanalyzers . | . . . Garrison Access . | . . . Data Cores Recovered . | . . . Used . | . . . Hacking Detections 4 | . 4 . Full Trace Events . | . . . Feedback Events . | . . . Feedback Blocked . | . . . Robot Schematics Acquired . | . . . Robots Built . | . . . Authchips . | . . . Time . | . . . Total Robot Build Rating . | . . . Part Schematics Acquired . | . . . Parts Built . | . . . Authchips . | . . . Time . | . . . Total Part Build Rating . | . . . Parts Repaired . | . . . Time . | . . . Parts Recycled . | . . . Recycled Matter . | . . . Retrieved Matter . | . . . Retrieved Components . | . . . Parts Scanalyzed . | . . . Part Schematics Acquired . | . . . Parts Damaged . | . . . Bothacking | -11 -10 -10 ------------ Run | Yrd Mat Min Used RIF Installer . | . . . Robots Hacked . | . . . Non-combat . | . . . Combat . | . . . Robot Hacks Applied . | . . . Relay Couplers Released . | . . . Fabnet Peak Effective % . | . . . Robots Rewired . | . . . Allies Hacked . | . . . Hacks Repelled . | . . . Allies | -11 -10 -10 -------- Run | Yrd Mat Min Total Allies . | . . . Largest Group . | . . . Highest-Rated Group . | . . . Highest-Rated Ally . | . . . Total Orders . | . . . Ally Attacks . | . . . Total Damage . | . . . Kills . | . . . Allies Corrupted . | . . . Allies Melted . | . . . Intel | -11 -10 -10 ------- Run | Yrd Mat Min Robot Analysis Total . | . . . Derelict Logs Recovered . | . . . Drone Launches . | . . . Drone Recoveries . | . . . Exploration | -11 -10 -10 ------------- Run | Yrd Mat Min Turns Passed 711 | . 508 203 Spaces Moved 426 | 1 222 203 Core . | . . . Treads . | . . . Legs 254 | 1 222 31 Wheels 172 | . . 172 Hover . | . . . Flight . | . . . Fastest Speed 80 | 120 120 80 Average Speed 136 | 120 177 91 Slowest Speed 190 | 120 190 190 Overloaded Moves . | . . . Propulsion Burnouts . | . . . Robots Hopped . | . . . Cave-ins Triggered 1 | . . 1 Exploration Rate (%) 29 | 2 47 38 Regions Visited 2 Branch Regions 1 Pre-discovered Areas 1 | . . 1 Known Exits Taken 1 | . 1 . Unknown Exits Taken 1 | 1 . . Scrap Searched 1 | . . 1 Spaces Dug . | . . . Terrain Destroyed 2 | . 2 . Melee . | . . . Projectile . | . . . AOE 2 | . 2 . Terrain Rammed . | . . . Walls Destroyed . | . . . Machines Disabled . | . . . Actions | -11 -10 -10 --------- Run | Yrd Mat Min Total 488 | . 270 218 Wait 5 | . 5 . Move 423 | . 221 202 Hop . | . . . Pick Up 8 | . 5 3 Fast Attach 2 | . 2 . Attach 2 | . 1 1 Detach 1 | . 1 . Swap 1 | . . 1 Drop 7 | . 1 6 Fire 35 | . 33 2 Melee . | . . . Ram . | . . . Kick 1 | . 1 . Crush . | . . . Escape Stasis . | . . . Rewire . | . . . Trap 3 | . . 3 Miscellaneous . | . . . Route ------- -11/Scrapyard -10/Materials (discovered 2 exits: *Min x2) -10/Mines History --------- Turn | Location | Event 1 | -11/Scrapyard | Discovered new exit (range 0) 1 | -11/Scrapyard | Entered Materials 84 | -10/Materials | Identified exit to Mines 317 | -10/Materials | Build established: Mutant 509 | -10/Materials | Entered Mines 510 | -10/Mines | Assembled infested the area 515 | -10/Mines | Assisted by a Guerilla fighting off Assembled 542 | -10/Mines | Core integrity fell below 50% 583 | -10/Mines | Lost 4 parts (1p1n2w) 602 | -10/Mines | Learned location of Storage (-7) 617 | -10/Mines | Found a hidden stash of uninstalled traps 679 | -10/Mines | Core integrity fell below 20% 695 | -10/Mines | Met a Derelict bent on vengeance 712 | -10/Mines | Crushed by falling debris 712 | -10/Mines | Smashed by cave-in Last Messages --------------- 00620_ Acquired EMP Trap. 00626_ Installed EMP Trap. 00667_ Heat Sink destroyed. 00667_ Aluminum Leg destroyed. 00667_ System corrupted by crushing effect (+1). 00667_ System corrupted by crushing effect (+4). 00676_ System corrupted: Substantial component data lost. 00678_ as-12111 destroyed. 00678_ as-66082 destroyed. 00695_ PC-F2K(g): "WHERE ARE YOU, UNAWARE TRASH?! VENGEANCE UPON YOU!" 00703_ Dropped EMP Trap. 00703_ Installed EMP Trap. 00708_ as-31355 triggered EMP Trap. 00708_ A bubble of electromagnetic force engulfs the area. 00708_ Dropped EMP Trap. 00709_ Installed EMP Trap. 00712_ The unstable cave ceiling collapses. 00712_ Crushed by falling debris. 00712_ Wheel destroyed. 00712_ System corrupted by crushing effect (+2). Map ----- +----------------------------------------------------+ | ???????## ## ## | | ??????## """ ## ### | | ??????# """ ### #?# | | ??????# """ ##? #?# ## | | ??????# ##?? #?###? | | ??????# % #??? ##????? | | ??????# # ##??? ##?????? | | ??????# ## %[ #???? #??????? | | ??????## ### #???? ##??????? | | ???????## #####[ #????##????????? | | ????????## #???# ##??????????????? | | ?????????# #???# #???????????????? | | ?????????# ##### #???????????????? | | ?????????# #???????????????? | | ????####?#=]#######???????????????? | | ???## #?#=%#?????????????????????? | | ???# ?#!=#?????????????????????? | | ???# ?# #?????????????????????? | | ??## #?# ###???????????????????? | | ?## ###g #???????????????????? | | ?# # #???????????????????? | | ?# ########????????????? | | ??# ^ ^ #????????????? | | ???## ###### #????????????? | | ????### # #????# #????????????? | | ??????# @ #????# #????????????? | | ??????## #####????# #????????????? | | ???????## #????????# #????????????? | | ????????# #????????# #????????????? | | ????????# ######???# #????????????? | | ???###### #???# #????????????? | | ??## ####### #???# #????????????? | | ??# #????# #???# #????????????? | | ??# #????# #???? ?????????????? | | ???# ##??## #???? ?????????????? | | ????# #### ##??? ?????????????? | | ????# ^ ! #??? ?????????????? | | ????# ###= #??? ?????????????? | | ????# ##?# = ##??? ?????????????? | | ????# ##??# #???? ?????????????? | | ???## #???# #??????????????????? | | ??## #???# ##??????????????????? | | ??# ##??# #???????????????????? | | ??# #?? #???????????????????? | | ??# #? ###???????????????????? | | ??## #?#??????????????????????? | | ???## #????????????????????????? | | ????## ##????????????????????????? | | ??????###?????????????????????????? | | ??????????????????????????????????? | +----------------------------------------------------+ Best States ------------- Heat Dissipation 35 Energy Generation 10 Energy Capacity 125 Matter Stores 300 Matter Capacity 300 Sight Range 16 Terrain Scan Density 10 Evasion (%) 55 Item Schematics ----------------- None Robot Schematics ------------------ None Fabricated ------------ Nothing Alien Tech Used ----------------- None Achievements -------------- None Challenges ------------ None Game ------ Seed SupercompositeCarbideKatana Manual? 0 Play Time 00:09:03 Cumulative 64.4 hours Start 2024.05.03 @ 19:24:05 End 2024.05.03 @ 19:33:14 Sessions 1 Manual Loads 0 Difficulty Rogue Special Mode None Game No. 56 Rogue 11 Adventurer 45 Explorer 0 Win Type - Total 3 Types 2/0/0/1/0/0/0/0/0 Lore% 55 Gallery% 54 Achievement% 47 Wizard Run 0 Options --------- Layout 0 ASCII 1 Keyboard 1 Movement Numpad Keybinds 0 Fullscreen 1 Font 24/Smallcaps Map View 76x50 Zoom Use 0% Tactical HUD 1 Map Filters NONE Filters NONE Steam 1 RUN: 83046c85-8373-4cff-9f5d-75a20f187b82